[Event "GER-ch Youth-U10 2022"]
[Site "Willingen"]
[Date "2022.06.10"]
[Round "10.20"]
[White "Menke, Raphael Wilhelm"]
[Black "Fels, Mattis"]
[Result "1/2-1/2"]
[ECO "B23"]
[WhiteElo "1212"]
[BlackElo "1395"]
[Annotator "NA RC COMBH"]
[PlyCount "142"]
[EventDate "2022.06.05"]
[EventType "swiss"]
[EventRounds "11"]
[EventCountry "GER"]
[SourceTitle "playchess.com"]
[Source "ChessBase"]
[SourceQuality "1"]
[TimeControl "40/4500+30:900+30"]

1. e4 {[%emt 0:19:51]} c5 {[%emt 0:00:08]} 2. Nc3 {[%emt 0:00:07]} Nc6 {[%emt 0:00:37]} 3. f4 {[%emt 0:00:13]} e6 {[%emt 0:00:56]} 4. Bb5 {[%emt 0:00:10]} Qc7 {[%emt 0:00:44]} 5. Bxc6 {[%emt 0:00:28]} Qxc6 {[%emt 0:00:22]} 6. Nf3 {[%emt 0:00:16]} Ne7 {[%emt 0:04:59]} 7. d3 {[%emt 0:00:26]} d5 {[%emt 0:00:27]} 8. O-O {[%emt 0:00:31]} a6 {[%emt 0:01:16]} 9. Qe1 {[%emt 0:01:33]} g6 {[%emt 0:09:17]} 10. Qh4 {[%emt 0:01:48]} Bg7 {[%emt 0:02:23]} 11. Bd2 {[%emt 0:02:16]} b5 {[%emt 0:01:38]} 12. Rae1 {[%emt 0:01:04]} d4 {[%emt 0:04:47]} 13. Ne2 {[%emt 0:01:35]} Qb6 {[%emt 0:02:26]} 14. Kh1 {[%emt 0:04:47]} Bb7 {[%emt 0:04:09]} 15. Ng3 {[%emt 0:01:21]} Qd6 {[%emt 0:15:25]} 16. Re2 {[%emt 0:11:44]} O-O {[%emt 0:02:21]} 17. Ng5 {[%emt 0:05:26]} h5 {[%emt 0:01:01]} 18. e5 {[%emt 0:02:54]} Qd7 {[%emt 0:02:45]} 19. N5e4 {[%emt 0:02:14]} Bxe4 {[%emt 0:02:25]} 20. Nxe4 {[%emt 0:02:38]} Nf5 {[%emt 0:00:41]} 21. Nf6+ {[%emt 0:01:12]} Bxf6 {[%emt 0:00:29]} 22. Qxf6 {[%emt 0:00:07]} Qd8 {[%emt 0:00:50]} 23. Qxd8 {[%emt 0:00:19]} Rfxd8 {[%emt 0:00:07]} 24. g3 {[%emt 0:00:38]} Rdc8 {[%emt 0:00:55]} 25. c3 {[%emt 0:02:49]} c4 {[%emt 0:03:00]} 26. Rf3 {[%emt 0:03:33]} dxc3 {[%emt 0:02:07]} 27. bxc3 {[%emt 0:01:07]} b4 {[%emt 0:00:20]} 28. dxc4 {[%emt 0:01:13]} Rxc4 {[%emt 0:01:14]} 29. Ref2 {[%emt 0:01:49]} Rac8 {[%emt 0:02:23]} 30. cxb4 {[%emt 0:01:03]} Rc2 {[%emt 0:00:12]} 31. a3 {[%emt 0:02:18]} Nd4 {[%emt 0:09:03]} 32. Rd3 {[%emt 0:00:37]} R8c4 {[%emt 0:00:40]} 33. Be3 {[%emt 0:01:45]} Rxf2 {[%emt 0:01:12]} 34. Bxf2 {[%emt 0:00:14]} Nf5 {[%emt 0:00:59]} 35. Kg2 {[%emt 0:00:38]} Kg7 {[%emt 0:00:34]} 36. Kf3 {[%emt 0:01:18]} f6 {[%emt 0:00:37]} 37. exf6+ {[%emt 0:05:31]} Kxf6 {[%emt 0:00:23]} 38. h3 {[%emt 0:01:44]} g5 {[%emt 0:02:54]} 39. Be3 {[%emt 0:02:10]} Nxe3 {[%emt 0:06:21]} 40. Rxe3 {[%emt 0:00:41]} gxf4 {[%emt 0:01:38]} 41. gxf4 {[%emt 0:15:21]} Rd4 {[%emt 0:02:52]} 42. Re5 {[%emt 0:00:00]} Rd3+ {[%emt 0:00:36]} 43. Re3 {[%emt 0:00:00]} Rd4 {[%emt 0:00:09]} 44. Rc3 {[%emt 0:00:00]} Rd5 {[%emt 0:01:16]} 45. a4 {[%emt 0:00:00]} Rd4 {[%emt 0:01:15]} 46. Rb3 {[%emt 0:00:00]} Kf5 {[%emt 0:00:36]} 47. Kg3 {[%emt 0:00:00]} Rxf4 {[%emt 0:00:48]} 48. Rf3 {[%emt 0:00:00]} h4+ {[%emt 0:00:50]} 49. Kf2 {[%emt 0:00:00]} Rxf3+ {[%emt 0:02:03]} 50. Kxf3 {[%emt 0:00:00]} Ke5 {[%emt 0:00:10]} 51. b5 {[%emt 0:00:00]} axb5 {[%emt 0:00:35]} 52. axb5 {[%emt 0:00:00]} Kd6 {[%emt 0:00:13]} 53. Ke4 {[%emt 0:00:00]} Kc5 {[%emt 0:00:42]} 54. Ke5 {[%emt 0:00:00]} Kxb5 {[%emt 0:00:08]} 55. Kxe6 {[%emt 0:00:00]} Kc6 {[%emt 0:00:06]} 56. Kf6 {[%emt 0:00:00]} Kd6 {[%emt 0:00:07]} 57. Kf5 {[%emt 0:00:00]} Kd5 {[%emt 0:00:11]} 58. Kg5 {[%emt 0:00:00]} Ke5 {[%emt 0:00:12]} 59. Kxh4 {[%emt 0:00:00]} Kf4 {[%emt 0:00:06]} 60. Kh5 {[%emt 0:00:00]} Kf5 {[%emt 0:00:27]} 61. Kh6 {[%emt 0:00:00]} Kf6 {[%emt 0:00:29]} 62. h4 {[%emt 0:00:00]} Kf5 {[%emt 0:00:57]} 63. h5 {[%emt 0:00:00]} Kf6 {[%emt 0:00:17]} 64. Kh7 {[%emt 0:00:00]} Kf7 {[%emt 0:00:26]} 65. Kh6 {[%emt 0:00:00]} Kf6 {[%emt 0:00:21]} 66. Kh7 {[%emt 0:00:00]} Kf7 {[%emt 0:00:07]} 67. h6 {[%emt 0:01:00]} Kf8 {[%emt 0:00:22]} 68. Kg6 {[%emt 0:00:09]} Kg8 {[%emt 0:00:21]} 69. Kh5 {[%emt 0:00:13]} Kh7 {[%emt 0:00:47]} 70. Kg5 {[%emt 0:00:06]} Kg8 {[%emt 0:00:33]} 71. Kg6 {[%emt 0:00:06]} Kh8 {[%emt 0:00:09]} 1/2-1/2

[Event "GER-ch Youth-U10 2022"]
[Site "Willingen"]
[Date "2022.06.10"]
[Round "10.21"]
[White "Tak, Rannveer"]
[Black "Hellriegel, Hannes"]
[Result "1-0"]
[ECO "C68"]
[WhiteElo "1746"]
[BlackElo "1335"]
[Annotator "NA RC COMBH"]
[PlyCount "121"]
[EventDate "2022.06.05"]
[EventType "swiss"]
[EventRounds "11"]
[EventCountry "GER"]
[SourceTitle "playchess.com"]
[Source "ChessBase"]
[SourceQuality "1"]
[TimeControl "40/4500+30:900+30"]

1. e4 {[%emt 0:00:02]} e5 {[%emt 0:00:07]} 2. Nf3 {[%emt 0:00:06]} Nc6 {[%emt 0:00:04]} 3. Bb5 {[%emt 0:00:06]} a6 {[%emt 0:00:09]} 4. Bxc6 {[%emt 0:00:15]} dxc6 {[%emt 0:00:11]} 5. O-O {[%emt 0:00:12]} Be6 {[%emt 0:00:25]} 6. Nxe5 {[%emt 0:02:18]} Qd4 {[%emt 0:00:22]} 7. Nf3 {[%emt 0:01:04]} Qxe4 {[%emt 0:00:34]} 8. Re1 {[%emt 0:00:15]} Qd5 {[%emt 0:01:51]} 9. Nc3 {[%emt 0:00:28]} Qd8 {[%emt 0:00:14]} 10. d4 {[%emt 0:00:14]} Be7 {[%emt 0:00:57]} 11. Bf4 {[%emt 0:05:24]} Nf6 {[%emt 0:00:43]} 12. Ng5 {[%emt 0:05:02]} Bf5 {[%emt 0:04:33]} 13. Re5 {[%emt 0:01:32]} Qd7 {[%emt 0:04:06]} 14. Nge4 {[%emt 0:12:47]} O-O {[%emt 0:02:03]} 15. Ng3 {[%emt 0:07:33]} Bg6 {[%emt 0:01:50]} 16. Qd2 {[%emt 0:05:34]} Bd6 {[%emt 0:03:13]} 17. Re2 {[%emt 0:00:27]} Rac8 {[%emt 0:03:50]} 18. Bxd6 {[%emt 0:01:28]} cxd6 {[%emt 0:02:04]} 19. Rae1 {[%emt 0:00:55]} Rfe8 {[%emt 0:01:47]} 20. Nce4 {[%emt 0:05:02]} Nxe4 {[%emt 0:01:18]} 21. Nxe4 {[%emt 0:00:46]} Bxe4 {[%emt 0:00:51]} 22. Rxe4 {[%emt 0:00:20]} Rxe4 {[%emt 0:00:13]} 23. Rxe4 {[%emt 0:00:05]} Re8 {[%emt 0:00:37]} 24. Rxe8+ {[%emt 0:01:23]} Qxe8 {[%emt 0:00:11]} 25. Kf1 {[%emt 0:00:25]} h6 {[%emt 0:00:52]} 26. Qe2 {[%emt 0:05:57]} Kf8 {[%emt 0:01:52]} 27. c4 {[%emt 0:03:32]} Qxe2+ {[%emt 0:00:35]} 28. Kxe2 {[%emt 0:00:14]} Ke7 {[%emt 0:00:12]} 29. Ke3 {[%emt 0:00:07]} Ke6 {[%emt 0:00:30]} 30. a4 {[%emt 0:03:45]} g5 {[%emt 0:01:54]} 31. f4 {[%emt 0:07:43]} f5 {[%emt 0:02:37]} 32. a5 {[%emt 0:02:33]} Kf6 {[%emt 0:01:30]} 33. b4 {[%emt 0:02:31]} g4 {[%emt 0:01:26]} 34. d5 {[%emt 0:03:34]} cxd5 {[%emt 0:00:18]} 35. cxd5 {[%emt 0:00:51]} h5 {[%emt 0:00:55]} 36. b5 {[%emt 0:01:15]} axb5 {[%emt 0:02:47]} 37. Kd4 {[%emt 0:02:14]} Ke7 {[%emt 0:00:37]} 38. Kc3 {[%emt 0:00:49]} Kd7 {[%emt 0:00:22]} 39. Kb4 {[%emt 0:00:21]} Kc7 {[%emt 0:00:22]} 40. Kxb5 {[%emt 0:00:12]} h4 {[%emt 0:00:16]} 41. g3 {[%emt 0:15:52]} h3 {[%emt 0:15:46]} 42. a6 {[%emt 0:00:14]} bxa6+ {[%emt 0:00:15]} 43. Kxa6 {[%emt 0:00:12]} Kc8 {[%emt 0:00:33]} 44. Kb6 {[%emt 0:00:34]} Kd7 {[%emt 0:00:27]} 45. Kb7 {[%emt 0:00:09]} Kd8 {[%emt 0:01:10]} 46. Kc6 {[%emt 0:00:10]} Ke7 {[%emt 0:00:10]} 47. Kc7 {[%emt 0:00:03]} Ke8 {[%emt 0:01:43]} 48. Kxd6 {[%emt 0:00:11]} Kd8 {[%emt 0:00:15]} 49. Ke6 {[%emt 0:00:14]} Kc7 {[%emt 0:00:20]} 50. Ke7 {[%emt 0:00:19]} Kb6 {[%emt 0:00:14]} 51. d6 {[%emt 0:00:10]} Kb5 {[%emt 0:00:07]} 52. d7 {[%emt 0:00:07]} Kb4 {[%emt 0:00:18]} 53. d8=Q {[%emt 0:00:13]} Kb3 {[%emt 0:00:00]} 54. Qd4 {[%emt 0:00:09]} Ka2 {[%emt 0:00:08]} 55. Qc3 {[%emt 0:00:14]} Kb1 {[%emt 0:00:09]} 56. Qd2 {[%emt 0:00:06]} Ka1 {[%emt 0:00:07]} 57. Kd6 {[%emt 0:00:05]} Kb1 {[%emt 0:00:08]} 58. Kc5 {[%emt 0:00:11]} Ka1 {[%emt 0:00:06]} 59. Kb4 {[%emt 0:00:02]} Kb1 {[%emt 0:00:09]} 60. Kb3 {[%emt 0:00:09]} Ka1 {[%emt 0:00:09]} 61. Qb2# {[%emt 0:00:34]} 1-0

[Event "GER-ch Youth-U10 2022"]
[Site "Willingen"]
[Date "2022.06.10"]
[Round "10.22"]
[White "Svanidze, Alexander"]
[Black "Andersen, Jonatan M"]
[Result "1-0"]
[ECO "B45"]
[WhiteElo "1348"]
[BlackElo "1857"]
[Annotator "NA RC COMBH"]
[PlyCount "63"]
[EventDate "2022.06.05"]
[EventType "swiss"]
[EventRounds "11"]
[EventCountry "GER"]
[SourceTitle "playchess.com"]
[Source "ChessBase"]
[SourceQuality "1"]
[TimeControl "40/4500+30:900+30"]

1. e4 {[%emt 0:00:01]} c5 {[%emt 0:00:07]} 2. Nf3 {[%emt 0:00:06]} e6 {[%emt 0:00:07]} 3. d4 {[%emt 0:00:05]} cxd4 {[%emt 0:00:06]} 4. Nxd4 {[%emt 0:00:05]} Nc6 {[%emt 0:00:06]} 5. Nc3 {[%emt 0:00:08]} Nf6 {[%emt 0:00:18]} 6. Be2 {[%emt 0:00:08]} Bb4 {[%emt 0:00:25]} 7. Bf3 {[%emt 0:00:45]} d5 {[%emt 0:00:32]} 8. exd5 {[%emt 0:00:28]} Nxd5 {[%emt 0:00:35]} 9. Nxc6 {[%emt 0:00:25]} Bxc3+ {[%emt 0:00:20]} 10. bxc3 {[%emt 0:00:12]} bxc6 {[%emt 0:00:04]} 11. c4 {[%emt 0:00:59]} Ne7 {[%emt 0:00:09]} 12. Qxd8+ {[%emt 0:00:09]} Kxd8 {[%emt 0:00:09]} 13. Ba3 {[%emt 0:00:22]} Bd7 {[%emt 0:00:49]} 14. O-O {[%emt 0:00:23]} Ng6 {[%emt 0:00:50]} 15. Rad1 {[%emt 0:00:51]} Kc7 {[%emt 0:00:41]} 16. Bd6+ {[%emt 0:01:58]} Kb7 {[%emt 0:00:50]} 17. Rb1+ {[%emt 0:00:33]} Kc8 {[%emt 0:00:11]} 18. Rb3 {[%emt 0:00:32]} Rd8 {[%emt 0:01:15]} 19. Rfb1 {[%emt 0:00:15]} Be8 {[%emt 0:00:16]} 20. Bg3 {[%emt 0:01:13]} e5 {[%emt 0:00:35]} 21. Be4 {[%emt 0:01:21]} f6 {[%emt 0:00:30]} 22. c5 {[%emt 0:01:00]} Rd4 {[%emt 0:01:46]} 23. Bd3 {[%emt 0:01:02]} Rd7 {[%emt 0:01:38]} 24. Bf5 {[%emt 0:00:27]} Kd8 {[%emt 0:00:10]} 25. Bxd7 {[%emt 0:00:33]} Bxd7 {[%emt 0:00:10]} 26. Rd1 {[%emt 0:00:42]} Kc7 {[%emt 0:00:19]} 27. Rdb1 {[%emt 0:00:50]} Bc8 {[%emt 0:00:16]} 28. f3 {[%emt 0:01:07]} Ba6 {[%emt 0:00:08]} 29. Rd1 {[%emt 0:01:03]} Nf8 {[%emt 0:00:25]} 30. Be1 {[%emt 0:00:37]} Bb5 {[%emt 0:00:43]} 31. c4 {[%emt 0:00:59]} Ba4 {[%emt 0:01:22]} 32. Ba5+ {[%emt 0:00:08]} 1-0

[Event "GER-ch Youth-U10 2022"]
[Site "Willingen"]
[Date "2022.06.10"]
[Round "10.23"]
[White "Li, Joshua"]
[Black "Wagener, Nicolas"]
[Result "1-0"]
[ECO "B43"]
[WhiteElo "1599"]
[BlackElo "1315"]
[Annotator "NA RC COMBH"]
[PlyCount "65"]
[EventDate "2022.06.05"]
[EventType "swiss"]
[EventRounds "11"]
[EventCountry "GER"]
[SourceTitle "playchess.com"]
[Source "ChessBase"]
[SourceQuality "1"]
[TimeControl "40/4500+30:900+30"]

1. e4 {[%emt 0:00:23]} c5 {[%emt 0:01:04]} 2. Nf3 {[%emt 0:00:09]} e6 {[%emt 0:01:11]} 3. d4 {[%emt 0:00:07]} cxd4 {[%emt 0:00:50]} 4. Nxd4 {[%emt 0:01:52]} a6 {[%emt 0:01:06]} 5. Nc3 {[%emt 0:00:59]} Qc7 {[%emt 0:01:25]} 6. Bd3 {[%emt 0:01:02]} Bc5 {[%emt 0:01:13]} 7. Nb3 {[%emt 0:01:11]} Ba7 {[%emt 0:00:25]} 8. Qg4 {[%emt 0:00:58]} g6 {[%emt 0:00:16]} 9. O-O {[%emt 0:02:15]} d6 {[%emt 0:00:14]} 10. Qf3 {[%emt 0:04:46]} Nc6 {[%emt 0:00:55]} 11. a3 {[%emt 0:01:26]} b5 {[%emt 0:00:51]} 12. Na2 {[%emt 0:02:16]} Bb7 {[%emt 0:01:17]} 13. Bd2 {[%emt 0:02:38]} Ne5 {[%emt 0:01:02]} 14. Qg3 {[%emt 0:02:09]} Nf6 {[%emt 0:02:55]} 15. Bc3 {[%emt 0:00:45]} Nh5 {[%emt 0:00:58]} 16. Qh4 {[%emt 0:01:24]} f5 {[%emt 0:10:29]} 17. Kh1 {[%emt 0:04:47]} Bb8 {[%emt 0:03:04]} 18. Be2 {[%emt 0:02:49]} Ng7 {[%emt 0:02:45]} 19. Qf6 {[%emt 0:02:15]} Bxe4 {[%emt 0:01:31]} 20. f4 {[%emt 0:01:14]} Ng4 {[%emt 0:01:40]} 21. Bxg4 {[%emt 0:00:35]} Rg8 {[%emt 0:02:46]} 22. Bf3 {[%emt 0:01:30]} Bxc2 {[%emt 0:01:16]} 23. Bxa8 {[%emt 0:00:59]} Bxb3 {[%emt 0:00:06]} 24. Nb4 {[%emt 0:01:52]} d5 {[%emt 0:00:49]} 25. Be5 {[%emt 0:01:06]} Qc8 {[%emt 0:00:59]} 26. Bc6+ {[%emt 0:00:23]} Qxc6 {[%emt 0:00:12]} 27. Nxc6 {[%emt 0:00:08]} Kd7 {[%emt 0:00:18]} 28. Nxb8+ {[%emt 0:00:30]} Rxb8 {[%emt 0:00:18]} 29. Qxg7+ {[%emt 0:00:45]} Ke8 {[%emt 0:00:10]} 30. Bf6 {[%emt 0:00:39]} Rb7 {[%emt 0:00:08]} 31. Qxb7 {[%emt 0:00:11]} Kf8 {[%emt 0:00:11]} 32. Qe7+ {[%emt 0:00:11]} Kg8 {[%emt 0:00:06]} 33. Qe8# {[%emt 0:00:19]} 1-0

[Event "GER-ch Youth-U10 2022"]
[Site "Willingen"]
[Date "2022.06.10"]
[Round "10.24"]
[White "Leonhardt, Max"]
[Black "Schmidt, Jossip"]
[Result "1-0"]
[ECO "D52"]
[WhiteElo "1114"]
[BlackElo "1085"]
[Annotator "NA RC COMBH"]
[PlyCount "78"]
[EventDate "2022.06.05"]
[EventType "swiss"]
[EventRounds "11"]
[EventCountry "GER"]
[SourceTitle "playchess.com"]
[Source "ChessBase"]
[SourceQuality "1"]
[TimeControl "40/4500+30:900+30"]

1. d4 {[%emt 0:00:07]} d5 {[%emt 0:00:20]} 2. c4 {[%emt 0:00:12]} e6 {[%emt 0:00:48]} 3. Nc3 {[%emt 0:00:08]} Nf6 {[%emt 0:00:55]} 4. Nf3 {[%emt 0:00:09]} c6 {[%emt 0:01:01]} 5. Bg5 {[%emt 0:00:37]} Nbd7 {[%emt 0:00:51]} 6. e3 {[%emt 0:00:16]} Qa5 {[%emt 0:00:27]} 7. a3 {[%emt 0:00:45]} Ne4 {[%emt 0:02:04]} 8. Qc2 {[%emt 0:01:03]} Bb4 {[%emt 0:03:55]} 9. Rc1 {[%emt 0:00:53]} Bxc3+ {[%emt 0:01:09]} 10. bxc3 {[%emt 0:00:13]} Qxa3 {[%emt 0:01:07]} 11. Bd3 {[%emt 0:00:22]} O-O {[%emt 0:01:39]} 12. O-O {[%emt 0:00:25]} Nef6 {[%emt 0:01:10]} 13. c5 {[%emt 0:00:48]} b6 {[%emt 0:00:43]} 14. Ra1 {[%emt 0:00:22]} Qxa1 {[%emt 0:00:47]} 15. Rxa1 {[%emt 0:00:08]} Bb7 {[%emt 0:00:27]} 16. Ne5 {[%emt 0:00:14]} h6 {[%emt 0:00:35]} 17. Nxd7 {[%emt 0:00:41]} Nxd7 {[%emt 0:00:16]} 18. Bf4 {[%emt 0:00:16]} Rfe8 {[%emt 0:00:34]} 19. cxb6 {[%emt 0:00:43]} Nxb6 {[%emt 0:00:19]} 20. g4 {[%emt 0:00:27]} g5 {[%emt 0:00:15]} 21. Bh7+ {[%emt 0:00:20]} Kf8 {[%emt 0:00:19]} 22. Bd6+ {[%emt 0:00:09]} Kg7 {[%emt 0:00:20]} 23. f4 {[%emt 0:00:20]} Nc4 {[%emt 0:00:31]} 24. Be5+ {[%emt 0:00:15]} Kf8 {[%emt 0:00:15]} 25. fxg5 {[%emt 0:00:24]} hxg5 {[%emt 0:00:28]} 26. h4 {[%emt 0:00:43]} Nxe3 {[%emt 0:00:31]} 27. Qe2 {[%emt 0:00:32]} Nc4 {[%emt 0:00:32]} 28. hxg5 {[%emt 0:00:11]} Ke7 {[%emt 0:00:06]} 29. g6 {[%emt 0:00:27]} fxg6 {[%emt 0:00:14]} 30. Bxg6 {[%emt 0:00:11]} Rf8 {[%emt 0:00:27]} 31. Rf1 {[%emt 0:00:41]} Rg8 {[%emt 0:00:24]} 32. Rf7+ {[%emt 0:00:25]} Kd8 {[%emt 0:00:15]} 33. Rxb7 {[%emt 0:00:19]} Rxg6 {[%emt 0:00:11]} 34. Kh2 {[%emt 0:00:36]} a5 {[%emt 0:00:30]} 35. Rb8+ {[%emt 0:00:44]} Rxb8 {[%emt 0:00:14]} 36. Bxb8 {[%emt 0:00:08]} Kc8 {[%emt 0:00:18]} 37. Be5 {[%emt 0:00:14]} a4 {[%emt 0:00:24]} 38. Qf3 {[%emt 0:00:25]} Rg8 {[%emt 0:00:37]} 39. Qf7 {[%emt 0:00:33]} Kd8 {[%emt 0:00:11]} 1-0

[Event "GER-ch Youth-U10 2022"]
[Site "Willingen"]
[Date "2022.06.10"]
[Round "10.27"]
[White "Antonius, Richard-Malte"]
[Black "Rinke, Alexander"]
[Result "1-0"]
[ECO "D02"]
[WhiteElo "1106"]
[BlackElo "1292"]
[Annotator "NA RC COMBH"]
[PlyCount "127"]
[EventDate "2022.06.05"]
[EventType "swiss"]
[EventRounds "11"]
[EventCountry "GER"]
[SourceTitle "playchess.com"]
[Source "ChessBase"]
[SourceQuality "1"]
[TimeControl "40/4500+30:900+30"]

1. d4 {[%emt 0:00:02]} d5 {[%emt 0:00:03]} 2. c3 {[%emt 0:00:04]} c6 {[%emt 0:00:04]} 3. Nf3 {[%emt 0:00:04]} Nf6 {[%emt 0:00:12]} 4. Bf4 {[%emt 0:00:04]} Bf5 {[%emt 0:00:11]} 5. e3 {[%emt 0:00:05]} e6 {[%emt 0:00:35]} 6. Bd3 {[%emt 0:00:05]} Bxd3 {[%emt 0:00:17]} 7. Qxd3 {[%emt 0:00:06]} Be7 {[%emt 0:00:19]} 8. h3 {[%emt 0:00:05]} O-O {[%emt 0:01:29]} 9. O-O {[%emt 0:00:08]} Nbd7 {[%emt 0:00:05]} 10. Nbd2 {[%emt 0:00:04]} c5 {[%emt 0:00:12]} 11. Rfe1 {[%emt 0:00:12]} cxd4 {[%emt 0:01:56]} 12. exd4 {[%emt 0:00:08]} Rc8 {[%emt 0:00:17]} 13. Rac1 {[%emt 0:01:00]} a6 {[%emt 0:00:25]} 14. Ne5 {[%emt 0:02:34]} Nxe5 {[%emt 0:01:20]} 15. Bxe5 {[%emt 0:00:11]} Bd6 {[%emt 0:00:16]} 16. Bxd6 {[%emt 0:00:13]} Qxd6 {[%emt 0:00:07]} 17. Nf3 {[%emt 0:00:10]} Ne4 {[%emt 0:10:35]} 18. Nd2 {[%emt 0:00:42]} Nxd2 {[%emt 0:00:26]} 19. Qxd2 {[%emt 0:00:12]} b5 {[%emt 0:00:20]} 20. a3 {[%emt 0:00:01]} Rc4 {[%emt 0:01:05]} 21. Rc2 {[%emt 0:00:20]} Rfc8 {[%emt 0:02:14]} 22. Rec1 {[%emt 0:04:40]} a5 {[%emt 0:01:18]} 23. f3 {[%emt 0:03:27]} b4 {[%emt 0:00:31]} 24. axb4 {[%emt 0:00:52]} axb4 {[%emt 0:00:11]} 25. cxb4 {[%emt 0:01:48]} Rxc2 {[%emt 0:00:26]} 26. Rxc2 {[%emt 0:00:11]} Rxc2 {[%emt 0:00:06]} 27. Qxc2 {[%emt 0:00:07]} Qxb4 {[%emt 0:00:05]} 28. Qc8+ {[%emt 0:00:11]} Qf8 {[%emt 0:00:07]} 29. Qxf8+ {[%emt 0:00:17]} Kxf8 {[%emt 0:00:04]} 30. Kf2 {[%emt 0:00:10]} Ke7 {[%emt 0:00:06]} 31. Ke2 {[%emt 0:00:07]} Kd6 {[%emt 0:00:06]} 32. Kd3 {[%emt 0:00:12]} f6 {[%emt 0:00:09]} 33. f4 {[%emt 0:00:15]} h6 {[%emt 0:00:37]} 34. h4 {[%emt 0:00:13]} g5 {[%emt 0:00:13]} 35. hxg5 {[%emt 0:00:14]} hxg5 {[%emt 0:00:08]} 36. fxg5 {[%emt 0:00:09]} fxg5 {[%emt 0:00:05]} 37. g4 {[%emt 0:00:06]} e5 {[%emt 0:00:27]} 38. dxe5+ {[%emt 0:00:10]} Kxe5 {[%emt 0:00:05]} 39. b4 {[%emt 0:00:09]} Kd6 {[%emt 0:01:02]} 40. Kd4 {[%emt 0:00:16]} Kc6 {[%emt 0:00:08]} 41. b5+ {[%emt 0:15:12]} Kxb5 {[%emt 0:15:32]} 42. Kxd5 {[%emt 0:00:07]} Kb6 {[%emt 0:00:04]} 43. Ke5 {[%emt 0:00:09]} Kc7 {[%emt 0:00:08]} 44. Kf5 {[%emt 0:00:08]} Kd8 {[%emt 0:00:07]} 45. Kxg5 {[%emt 0:00:07]} Ke8 {[%emt 0:00:08]} 46. Kg6 {[%emt 0:00:03]} Kf8 {[%emt 0:00:11]} 47. Kh7 {[%emt 0:00:14]} Kf7 {[%emt 0:00:10]} 48. g5 {[%emt 0:00:05]} Kf8 {[%emt 0:00:18]} 49. g6 {[%emt 0:00:35]} Ke7 {[%emt 0:00:11]} 50. g7 {[%emt 0:00:14]} Ke6 {[%emt 0:00:03]} 51. g8=Q+ {[%emt 0:00:12]} Ke5 {[%emt 0:00:02]} 52. Qg4 {[%emt 0:00:44]} Kd6 {[%emt 0:00:11]} 53. Qf5 {[%emt 0:00:13]} Kc6 {[%emt 0:00:29]} 54. Qe5 {[%emt 0:00:09]} Kd7 {[%emt 0:00:07]} 55. Qf6 {[%emt 0:00:16]} Kc7 {[%emt 0:00:10]} 56. Qe6 {[%emt 0:00:05]} Kb8 {[%emt 0:00:11]} 57. Qd7 {[%emt 0:00:09]} Ka8 {[%emt 0:00:11]} 58. Kg8 {[%emt 0:00:23]} Kb8 {[%emt 0:00:06]} 59. Kf8 {[%emt 0:00:05]} Ka8 {[%emt 0:00:09]} 60. Ke8 {[%emt 0:00:09]} Kb8 {[%emt 0:00:17]} 61. Ke7 {[%emt 0:00:31]} Ka8 {[%emt 0:00:05]} 62. Kd6 {[%emt 0:00:07]} Kb8 {[%emt 0:00:15]} 63. Kc6 {[%emt 0:00:08]} Ka8 {[%emt 0:00:00]} 64. Qb7# {[%emt 0:00:07]} 1-0

[Event "GER-ch Youth-U10 2022"]
[Site "Willingen"]
[Date "2022.06.11"]
[Round "11.1"]
[White "Nezhyvenko, Mykhaylo"]
[Black "Bundan, Edward"]
[Result "1-0"]
[ECO "C05"]
[WhiteElo "1488"]
[BlackElo "1240"]
[Annotator "NA RC COMBH"]
[PlyCount "89"]
[EventDate "2022.06.05"]
[EventType "swiss"]
[EventRounds "11"]
[EventCountry "GER"]
[SourceTitle "playchess.com"]
[Source "ChessBase"]
[SourceQuality "1"]
[TimeControl "40/4500+30:900+30"]

1. e4 {[%emt 0:00:01]} e6 {[%emt 0:00:14]} 2. d4 {[%emt 0:00:05]} d5 {[%emt 0:00:04]} 3. Nc3 {[%emt 0:00:02]} Nf6 {[%emt 0:00:06]} 4. e5 {[%emt 0:00:08]} Nfd7 {[%emt 0:00:04]} 5. Nce2 {[%emt 0:00:01]} c5 {[%emt 0:00:09]} 6. c3 {[%emt 0:00:03]} Nc6 {[%emt 0:00:11]} 7. f4 {[%emt 0:00:08]} Qb6 {[%emt 0:00:13]} 8. Nf3 {[%emt 0:00:11]} Be7 {[%emt 0:00:48]} 9. g3 {[%emt 0:00:21]} O-O {[%emt 0:00:36]} 10. Bh3 {[%emt 0:00:10]} cxd4 {[%emt 0:01:22]} 11. cxd4 {[%emt 0:00:01]} Bb4+ {[%emt 0:00:53]} 12. Bd2 {[%emt 0:00:25]} Bxd2+ {[%emt 0:00:37]} 13. Qxd2 {[%emt 0:00:03]} Qb4 {[%emt 0:02:33]} 14. Nc3 {[%emt 0:01:37]} Nb6 {[%emt 0:00:59]} 15. b3 {[%emt 0:00:04]} Bd7 {[%emt 0:00:41]} 16. O-O {[%emt 0:01:27]} Rac8 {[%emt 0:00:56]} 17. Rac1 {[%emt 0:00:14]} Rfe8 {[%emt 0:01:09]} 18. g4 {[%emt 0:01:00]} Ne7 {[%emt 0:04:54]} 19. Qd3 {[%emt 0:02:28]} Ng6 {[%emt 0:10:26]} 20. Qd2 {[%emt 0:06:01]} Ne7 {[%emt 0:02:52]} 21. Ne1 {[%emt 0:00:53]} Nc6 {[%emt 0:01:09]} 22. Nc2 {[%emt 0:00:10]} Qe7 {[%emt 0:05:19]} 23. f5 {[%emt 0:01:05]} exf5 {[%emt 0:01:44]} 24. gxf5 {[%emt 0:00:02]} Qh4 {[%emt 0:01:22]} 25. Bg2 {[%emt 0:01:59]} Qg4 {[%emt 0:16:32]} 26. Ne2 {[%emt 0:04:04]} Ne7 {[%emt 0:05:02]} 27. Ng3 {[%emt 0:05:29]} Bb5 {[%emt 0:02:32]} 28. Rf2 {[%emt 0:01:47]} Rc7 {[%emt 0:06:16]} 29. Re1 {[%emt 0:02:06]} Rec8 {[%emt 0:01:55]} 30. Ne3 {[%emt 0:00:24]} Qg5 {[%emt 0:01:48]} 31. f6 {[%emt 0:00:40]} Nc6 {[%emt 0:03:10]} 32. Rf5 {[%emt 0:00:22]} Qh6 {[%emt 0:00:58]} 33. Rh5 {[%emt 0:00:14]} Qf4 {[%emt 0:00:39]} 34. Ngf5 {[%emt 0:01:32]} g6 {[%emt 0:01:22]} 35. Rh4 {[%emt 0:00:15]} Qg5 {[%emt 0:01:04]} 36. Rg4 {[%emt 0:00:25]} Qh5 {[%emt 0:00:29]} 37. Bf3 {[%emt 0:00:13]} Qh3 {[%emt 0:01:04]} 38. Rg3 {[%emt 0:00:18]} Qxg3+ {[%emt 0:00:46]} 39. Nxg3 {[%emt 0:00:12]} Nd8 {[%emt 0:00:17]} 40. Nxd5 {[%emt 0:00:10]} Nxd5 {[%emt 0:00:06]} 41. Bxd5 {[%emt 0:15:06]} Rc2 {[%emt 0:15:13]} 42. Qh6 {[%emt 0:00:02]} Ne6 {[%emt 0:01:20]} 43. Bxe6 {[%emt 0:00:03]} Rg2+ {[%emt 0:01:12]} 44. Kxg2 {[%emt 0:00:17]} Rc2+ {[%emt 0:00:05]} 45. Kg1 {[%emt 0:00:15]} 1-0